[Event "Titled Tuesday Blitz May 16 Early 2023"]
[White "Loiacono, Antonio"]
[Black "Fernandez Guillen, Ernesto J."]
[WhiteFideId "895415"]
[BlackFideId "3512428"]
[WhiteElo "2257"]
[BlackElo "2429"]
[Result "0-1"]
[Round "02"]
[TimeControl "180+2"]
[Date "2023.05.16"]
[WhiteClock "0:00:04"]
[BlackClock "0:00:15"]

1. e4 {[%clk 0:03:00]}  e5 {[%clk 0:02:59]} 2. Nf3 {[%clk 0:03:00]}  Nc6 {[%clk 0:02:59]} 3. Nc3 {[%clk 0:03:00]}  g6 {[%clk 0:02:59]} 4. d4 {[%clk 0:02:56]}  exd4 {[%clk 0:02:59]} 5. Nxd4 {[%clk 0:02:56]}  Bg7 {[%clk 0:02:59]} 6. Be3 {[%clk 0:02:56]}  Nge7 {[%clk 0:02:59]} 7. h4 {[%clk 0:02:55]}  O-O {[%clk 0:02:53]} 8. h5 {[%clk 0:02:55]}  d5 {[%clk 0:02:53]} 9. Nxc6 {[%clk 0:02:26]}  bxc6 {[%clk 0:02:49]} 10. Bd4 {[%clk 0:02:19]}  Bxd4 {[%clk 0:02:47]} 11. Qxd4 {[%clk 0:02:15]}  dxe4 {[%clk 0:02:47]} 12. Qxd8 {[%clk 0:02:07]}  Rxd8 {[%clk 0:02:48]} 13. Nxe4 {[%clk 0:02:03]}  Bf5 {[%clk 0:02:47]} 14. Bd3 {[%clk 0:01:59]}  Nd5 {[%clk 0:02:41]} 15. hxg6 {[%clk 0:01:38]}  hxg6 {[%clk 0:02:37]} 16. O-O-O {[%clk 0:01:35]}  Kg7 {[%clk 0:02:31]} 17. Ng5 {[%clk 0:01:21]}  Bxd3 {[%clk 0:02:18]} 18. Rxd3 {[%clk 0:01:20]}  Rh8 {[%clk 0:02:18]} 19. Rdh3 {[%clk 0:01:18]}  Rxh3 {[%clk 0:02:10]} 20. Rxh3 {[%clk 0:01:19]}  Re8 {[%clk 0:01:46]} 21. Rf3 {[%clk 0:01:07]}  f6 {[%clk 0:01:44]} 22. Nh3 {[%clk 0:01:07]}  g5 {[%clk 0:01:42]} 23. Ra3 {[%clk 0:01:03]}  Kg6 {[%clk 0:01:15]} 24. Kd2 {[%clk 0:01:02]}  Rd8 {[%clk 0:01:08]} 25. Rd3 {[%clk 0:00:58]}  Rb8 {[%clk 0:01:07]} 26. b3 {[%clk 0:00:56]}  g4 {[%clk 0:01:07]} 27. Ng1 {[%clk 0:00:55]}  Nf4 {[%clk 0:01:04]} 28. Rd4 {[%clk 0:00:54]}  Kf5 {[%clk 0:01:02]} 29. Ne2 {[%clk 0:00:30]}  Ne6 {[%clk 0:00:59]} 30. Ng3+ {[%clk 0:00:29]}  Kg5 {[%clk 0:00:58]} 31. Rc4 {[%clk 0:00:28]}  Rd8+ {[%clk 0:00:55]} 32. Kc3 {[%clk 0:00:26]}  f5 {[%clk 0:00:43]} 33. Rxc6 {[%clk 0:00:25]}  Kf6 {[%clk 0:00:31]} 34. Ne2 {[%clk 0:00:20]}  Ke5 {[%clk 0:00:31]} 35. f4+ {[%clk 0:00:16]}  Nxf4 {[%clk 0:00:26]} 36. Rc5+ {[%clk 0:00:16]}  Nd5+ {[%clk 0:00:26]} 37. Kc4 {[%clk 0:00:16]}  f4 {[%clk 0:00:18]} 38. Nxf4 {[%clk 0:00:14]}  Kxf4 {[%clk 0:00:18]} 39. Rxd5 {[%clk 0:00:14]}  Rxd5 {[%clk 0:00:19]} 40. Kxd5 {[%clk 0:00:14]}  Kg3 {[%clk 0:00:19]} 41. c4 {[%clk 0:00:13]}  Kxg2 {[%clk 0:00:19]} 42. Kc6 {[%clk 0:00:14]}  Kf2 {[%clk 0:00:17]} 43. Kxc7 {[%clk 0:00:15]}  g3 {[%clk 0:00:17]} 44. Kb7 {[%clk 0:00:15]}  g2 {[%clk 0:00:18]} 45. c5 {[%clk 0:00:16]}  g1=Q {[%clk 0:00:18]} 46. c6 {[%clk 0:00:17]}  Qg2 {[%clk 0:00:18]} 47. b4 {[%clk 0:00:15]}  Qd5 {[%clk 0:00:18]} 48. a4 {[%clk 0:00:15]}  Qd4 {[%clk 0:00:13]} 49. c7 {[%clk 0:00:09]}  Qb6+ {[%clk 0:00:12]} 50. Kc8 {[%clk 0:00:08]}  Qxb4 {[%clk 0:00:12]} 51. Kd8 {[%clk 0:00:07]}  Qa5 {[%clk 0:00:13]} 52. Kd7 {[%clk 0:00:04]}  Qxa4+ {[%clk 0:00:13]} 53. Kc8 {[%clk 0:00:05]}  a5 {[%clk 0:00:13]} 54. Kb7 {[%clk 0:00:04]}  Qb5+ {[%clk 0:00:14]} 55. Ka7 {[%clk 0:00:05]}  Qc5+ {[%clk 0:00:13]} 56. Kb8 {[%clk 0:00:05]}  a4 {[%clk 0:00:14]} 57. c8=Q {[%clk 0:00:05]}  Qxc8+ {[%clk 0:00:15]} 58. Kxc8 {[%clk 0:00:04]}  a3 {[%clk 0:00:15]} 0-1


[Site "https://www.chess.com"]

[Event "Titled Tuesday Blitz May 16 Early 2023"]
[White "Romkachess"]
[Black "Bondau"]
[WhiteElo "2545"]
[BlackElo "2784"]
[Result "1/2-1/2"]
[Round "02"]
[TimeControl "180+2"]
[Date "2023.05.16"]
[WhiteClock "0:00:14"]
[BlackClock "0:00:02"]

1. e4 {[%clk 0:02:58]}  c5 {[%clk 0:02:59]} 2. Nf3 {[%clk 0:02:50]}  d6 {[%clk 0:02:59]} 3. d4 {[%clk 0:02:50]}  cxd4 {[%clk 0:03:00]} 4. Nxd4 {[%clk 0:02:51]}  Nf6 {[%clk 0:03:00]} 5. Nc3 {[%clk 0:02:51]}  g6 {[%clk 0:03:00]} 6. Be2 {[%clk 0:02:50]}  Bg7 {[%clk 0:03:00]} 7. Be3 {[%clk 0:02:50]}  O-O {[%clk 0:03:01]} 8. O-O {[%clk 0:02:50]}  Nc6 {[%clk 0:03:01]} 9. h3 {[%clk 0:02:49]}  a6 {[%clk 0:03:00]} 10. a4 {[%clk 0:02:50]}  Bd7 {[%clk 0:02:52]} 11. Qd2 {[%clk 0:02:49]}  Rc8 {[%clk 0:02:51]} 12. f4 {[%clk 0:02:44]}  Nxd4 {[%clk 0:02:46]} 13. Bxd4 {[%clk 0:02:43]}  Bc6 {[%clk 0:02:47]} 14. Bf3 {[%clk 0:02:42]}  e5 {[%clk 0:02:10]} 15. Be3 {[%clk 0:02:30]}  exf4 {[%clk 0:02:11]} 16. Bxf4 {[%clk 0:02:30]}  Qb6+ {[%clk 0:01:55]} 17. Be3 {[%clk 0:02:22]}  Qb4 {[%clk 0:01:51]} 18. Qd4 {[%clk 0:01:44]}  Qxd4 {[%clk 0:01:33]} 19. Bxd4 {[%clk 0:01:45]}  Rfe8 {[%clk 0:01:33]} 20. Rfe1 {[%clk 0:01:25]}  Nd7 {[%clk 0:01:21]} 21. Bxg7 {[%clk 0:01:24]}  Kxg7 {[%clk 0:01:22]} 22. Bg4 {[%clk 0:01:23]}  Rcd8 {[%clk 0:01:06]} 23. Bxd7 {[%clk 0:01:21]}  Rxd7 {[%clk 0:01:07]} 24. Rad1 {[%clk 0:01:22]}  Re5 {[%clk 0:01:03]} 25. Kf2 {[%clk 0:01:17]}  b5 {[%clk 0:01:00]} 26. axb5 {[%clk 0:01:15]}  axb5 {[%clk 0:01:01]} 27. Rd4 {[%clk 0:01:15]}  Kf6 {[%clk 0:00:46]} 28. Red1 {[%clk 0:01:14]}  Ke7 {[%clk 0:00:46]} 29. Nd5+ {[%clk 0:01:10]}  Bxd5 {[%clk 0:00:46]} 30. Rxd5 {[%clk 0:01:11]}  Rc7 {[%clk 0:00:44]} 31. c3 {[%clk 0:01:07]}  Rxd5 {[%clk 0:00:28]} 32. Rxd5 {[%clk 0:01:07]}  b4 {[%clk 0:00:28]} 33. cxb4 {[%clk 0:00:56]}  Rc2+ {[%clk 0:00:28]} 34. Kf3 {[%clk 0:00:56]}  Rxb2 {[%clk 0:00:28]} 35. e5 {[%clk 0:00:49]}  Rb3+ {[%clk 0:00:25]} 36. Kf2 {[%clk 0:00:48]}  Rb2+ {[%clk 0:00:25]} 37. Kf3 {[%clk 0:00:46]}  dxe5 {[%clk 0:00:18]} 38. Rxe5+ {[%clk 0:00:47]}  Kd6 {[%clk 0:00:18]} 39. Rb5 {[%clk 0:00:48]}  Kc6 {[%clk 0:00:17]} 40. Rb8 {[%clk 0:00:43]}  Rb3+ {[%clk 0:00:15]} 41. Kf2 {[%clk 0:00:41]}  f5 {[%clk 0:00:12]} 42. Rh8 {[%clk 0:00:38]}  Rb2+ {[%clk 0:00:10]} 43. Kg3 {[%clk 0:00:38]}  Rxb4 {[%clk 0:00:10]} 44. Rxh7 {[%clk 0:00:38]}  Kd5 {[%clk 0:00:09]} 45. Rh6 {[%clk 0:00:35]}  Rb6 {[%clk 0:00:05]} 46. h4 {[%clk 0:00:35]}  Ke5 {[%clk 0:00:04]} 47. Rh8 {[%clk 0:00:27]}  Rb3+ {[%clk 0:00:04]} 48. Kf2 {[%clk 0:00:26]}  f4 {[%clk 0:00:05]} 49. Rf8 {[%clk 0:00:23]}  Ke4 {[%clk 0:00:05]} 50. Kg1 {[%clk 0:00:19]}  Rb1+ {[%clk 0:00:04]} 51. Kh2 {[%clk 0:00:19]}  Rb6 {[%clk 0:00:04]} 52. Kh3 {[%clk 0:00:17]}  Rb3+ {[%clk 0:00:04]} 53. Kh2 {[%clk 0:00:16]}  Ke5 {[%clk 0:00:04]} 54. Kg1 {[%clk 0:00:14]}  Rb2 {[%clk 0:00:04]} 55. Kh2 {[%clk 0:00:15]}  Rb3 {[%clk 0:00:03]} 56. Kg1 {[%clk 0:00:14]}  Rb1+ {[%clk 0:00:04]} 57. Kh2 {[%clk 0:00:14]}  Rb4 {[%clk 0:00:03]} 58. Rg8 {[%clk 0:00:14]}  Kf5 {[%clk 0:00:03]} 59. Kh3 {[%clk 0:00:14]}  Rb3+ {[%clk 0:00:03]} 60. Kh2 {[%clk 0:00:15]}  Rg3 {[%clk 0:00:04]} 61. h5 {[%clk 0:00:13]}  gxh5 {[%clk 0:00:03]} 62. Rxg3 {[%clk 0:00:13]}  fxg3+ {[%clk 0:00:04]} 63. Kxg3 {[%clk 0:00:14]}  Kg5 {[%clk 0:00:02]} 64. Kh3 {[%clk 0:00:14]} 1/2-1/2


[Site "https://www.chess.com"]

[Event "Titled Tuesday Blitz May 16 Early 2023"]
[White "Weetik, Vjacheslav"]
[Black "Moksh Amit Doshi"]
[WhiteFideId "4153472"]
[BlackFideId "25064967"]
[WhiteElo "2469"]
[BlackElo "2297"]
[Result "0-1"]
[Round "02"]
[TimeControl "180+2"]
[Date "2023.05.16"]
[WhiteClock "0:00:02"]
[BlackClock "0:00:18"]

1. d4 {[%clk 0:03:00]}  Nf6 {[%clk 0:02:52]} 2. c4 {[%clk 0:02:59]}  e6 {[%clk 0:02:50]} 3. g3 {[%clk 0:02:59]}  d5 {[%clk 0:02:47]} 4. Nf3 {[%clk 0:02:59]}  Bb4+ {[%clk 0:02:44]} 5. Bd2 {[%clk 0:02:59]}  a5 {[%clk 0:02:42]} 6. Bg2 {[%clk 0:03:00]}  O-O {[%clk 0:02:41]} 7. Qc2 {[%clk 0:02:59]}  c5 {[%clk 0:02:39]} 8. dxc5 {[%clk 0:02:53]}  d4 {[%clk 0:02:37]} 9. O-O {[%clk 0:02:44]}  Bxc5 {[%clk 0:02:32]} 10. Na3 {[%clk 0:02:05]}  Nc6 {[%clk 0:02:24]} 11. Bf4 {[%clk 0:01:48]}  Nh5 {[%clk 0:01:58]} 12. Bd2 {[%clk 0:00:53]}  e5 {[%clk 0:01:53]} 13. Ng5 {[%clk 0:00:48]}  Nf6 {[%clk 0:01:52]} 14. Nb5 {[%clk 0:00:41]}  h6 {[%clk 0:01:51]} 15. Ne4 {[%clk 0:00:30]}  Bf5 {[%clk 0:01:51]} 16. Nxf6+ {[%clk 0:00:30]}  Qxf6 {[%clk 0:01:51]} 17. Be4 {[%clk 0:00:31]}  Bh3 {[%clk 0:01:47]} 18. Bg2 {[%clk 0:00:25]}  Bf5 {[%clk 0:01:46]} 19. Be4 {[%clk 0:00:25]}  Bg4 {[%clk 0:01:45]} 20. Qd3 {[%clk 0:00:17]}  Rad8 {[%clk 0:01:16]} 21. a3 {[%clk 0:00:14]}  Qe7 {[%clk 0:01:12]} 22. f4 {[%clk 0:00:14]}  f5 {[%clk 0:01:09]} 23. Bd5+ {[%clk 0:00:14]}  Kh8 {[%clk 0:01:09]} 24. Qb3 {[%clk 0:00:03]}  Bxe2 {[%clk 0:01:05]} 25. Rfe1 {[%clk 0:00:03]}  d3+ {[%clk 0:01:02]} 26. Kg2 {[%clk 0:00:04]}  e4 {[%clk 0:01:01]} 27. Rxe2 {[%clk 0:00:03]}  dxe2 {[%clk 0:01:01]} 28. Re1 {[%clk 0:00:04]}  Nd4 {[%clk 0:00:37]} 29. Nxd4 {[%clk 0:00:04]}  Bxd4 {[%clk 0:00:38]} 30. Rxe2 {[%clk 0:00:05]}  b6 {[%clk 0:00:38]} 31. Qb5 {[%clk 0:00:03]}  Qc5 {[%clk 0:00:38]} 32. Qxc5 {[%clk 0:00:02]}  Bxc5 {[%clk 0:00:39]} 33. b4 {[%clk 0:00:03]}  axb4 {[%clk 0:00:39]} 34. axb4 {[%clk 0:00:04]}  Bd4 {[%clk 0:00:39]} 35. Be1 {[%clk 0:00:04]}  Rd7 {[%clk 0:00:38]} 36. Rc2 {[%clk 0:00:04]}  Ra7 {[%clk 0:00:38]} 37. Bf2 {[%clk 0:00:04]}  Bxf2 {[%clk 0:00:37]} 38. Kxf2 {[%clk 0:00:05]}  g6 {[%clk 0:00:34]} 39. Ke3 {[%clk 0:00:05]}  Ra3+ {[%clk 0:00:26]} 40. Kd4 {[%clk 0:00:05]}  Rd3+ {[%clk 0:00:25]} 41. Ke5 {[%clk 0:00:06]}  e3 {[%clk 0:00:26]} 42. Re2 {[%clk 0:00:06]}  Re8+ {[%clk 0:00:24]} 43. Be6 {[%clk 0:00:05]}  Kg7 {[%clk 0:00:22]} 44. g4 {[%clk 0:00:04]}  fxg4 {[%clk 0:00:20]} 45. c5 {[%clk 0:00:05]}  bxc5 {[%clk 0:00:19]} 46. bxc5 {[%clk 0:00:06]}  Rc3 {[%clk 0:00:20]} 47. Kd6 {[%clk 0:00:05]}  Kf6 {[%clk 0:00:20]} 48. Bd5 {[%clk 0:00:05]}  Rd3 {[%clk 0:00:20]} 49. Kd7 {[%clk 0:00:02]}  Re7+ {[%clk 0:00:20]} 50. Kc6 {[%clk 0:00:03]}  Rd2 {[%clk 0:00:21]} 51. Re1 {[%clk 0:00:03]}  e2 {[%clk 0:00:21]} 52. Bc4 {[%clk 0:00:04]}  Rc2 {[%clk 0:00:18]} 53. Bb5 {[%clk 0:00:04]}  Kf5 {[%clk 0:00:18]} 54. Kd6 {[%clk 0:00:04]}  Re3 {[%clk 0:00:17]} 55. Bd7+ {[%clk 0:00:03]}  Kxf4 {[%clk 0:00:18]} 56. c6 {[%clk 0:00:04]}  Rd2+ {[%clk 0:00:17]} 57. Kc5 {[%clk 0:00:03]}  Rd1 {[%clk 0:00:18]} 58. Rxe2 {[%clk 0:00:02]}  Rxe2 {[%clk 0:00:18]} 0-1


[Site "https://www.chess.com"]

[Event "Titled Tuesday Blitz May 16 Early 2023"]
[White "Ilamparthi A R"]
[Black "Kuznetsov, Mikhail"]
[WhiteFideId "45015775"]
[BlackFideId "4117190"]
[WhiteElo "2348"]
[BlackElo "1981"]
[Result "1-0"]
[Round "02"]
[TimeControl "180+2"]
[Date "2023.05.16"]
[WhiteClock "0:01:52"]
[BlackClock "0:00:02"]

1. e4 {[%clk 0:03:00]}  c6 {[%clk 0:02:45]} 2. d3 {[%clk 0:03:00]}  d5 {[%clk 0:02:45]} 3. Nd2 {[%clk 0:03:00]}  dxe4 {[%clk 0:02:44]} 4. dxe4 {[%clk 0:03:00]}  Nf6 {[%clk 0:02:43]} 5. g3 {[%clk 0:02:53]}  Bg4 {[%clk 0:02:41]} 6. Be2 {[%clk 0:02:48]}  Bxe2 {[%clk 0:02:39]} 7. Qxe2 {[%clk 0:02:49]}  e6 {[%clk 0:02:37]} 8. Ngf3 {[%clk 0:02:49]}  Be7 {[%clk 0:02:37]} 9. O-O {[%clk 0:02:48]}  O-O {[%clk 0:02:37]} 10. e5 {[%clk 0:02:47]}  Nd5 {[%clk 0:02:36]} 11. c4 {[%clk 0:02:47]}  Nb4 {[%clk 0:02:36]} 12. Rd1 {[%clk 0:02:40]}  c5 {[%clk 0:01:51]} 13. Ne4 {[%clk 0:02:38]}  Qc7 {[%clk 0:01:48]} 14. Bf4 {[%clk 0:02:37]}  Nd7 {[%clk 0:01:40]} 15. Nf6+ {[%clk 0:02:27]}  gxf6 {[%clk 0:01:10]} 16. exf6 {[%clk 0:02:27]}  Qd8 {[%clk 0:00:30]} 17. fxe7 {[%clk 0:02:24]}  Qxe7 {[%clk 0:00:31]} 18. Bd6 {[%clk 0:02:20]}  Qf6 {[%clk 0:00:32]} 19. Bxf8 {[%clk 0:02:17]}  Nxf8 {[%clk 0:00:32]} 20. Ne5 {[%clk 0:02:10]}  Ng6 {[%clk 0:00:24]} 21. Nxg6 {[%clk 0:02:05]}  hxg6 {[%clk 0:00:25]} 22. Rd7 {[%clk 0:02:05]}  Rb8 {[%clk 0:00:10]} 23. h4 {[%clk 0:01:59]}  Nc6 {[%clk 0:00:08]} 24. Qe4 {[%clk 0:01:52]}  Qxb2 {[%clk 0:00:04]} 25. Rb1 {[%clk 0:01:52]}  Qxa2 {[%clk 0:00:03]} 26. Rbxb7 {[%clk 0:01:52]}  Rxb7 {[%clk 0:00:03]} 27. Rxb7 {[%clk 0:01:53]}  Ne5 {[%clk 0:00:02]} 28. Qxe5 {[%clk 0:01:52]}  Qxc4 {[%clk 0:00:01]} 29. Rb8+ {[%clk 0:01:52]}  Kh7 {[%clk 0:00:02]} 30. Rh8# {[%clk 0:01:52]} 1-0


[Site "https://www.chess.com"]

[Event "Titled Tuesday Blitz May 16 Early 2023"]
[White "Bagwe Gaurang"]
[Black "Santos Ruiz, Miguel"]
[WhiteFideId "45039895"]
[BlackFideId "22291482"]
[WhiteElo "1847"]
[BlackElo "2499"]
[Result "0-1"]
[Round "02"]
[TimeControl "180+2"]
[Date "2023.05.16"]
[WhiteClock "0:00:00"]
[BlackClock "0:00:15"]

1. e4 {[%clk 0:03:00]}  c5 {[%clk 0:02:58]} 2. c3 {[%clk 0:03:01]}  Nf6 {[%clk 0:02:58]} 3. e5 {[%clk 0:02:58]}  Nd5 {[%clk 0:02:58]} 4. d4 {[%clk 0:02:57]}  cxd4 {[%clk 0:02:59]} 5. Nf3 {[%clk 0:02:57]}  Nc6 {[%clk 0:02:53]} 6. cxd4 {[%clk 0:02:57]}  d6 {[%clk 0:02:53]} 7. exd6 {[%clk 0:02:56]}  Bg4 {[%clk 0:02:52]} 8. dxe7 {[%clk 0:02:38]}  Qxe7+ {[%clk 0:02:49]} 9. Be2 {[%clk 0:02:38]}  Bxf3 {[%clk 0:02:48]} 10. gxf3 {[%clk 0:02:37]}  O-O-O {[%clk 0:02:39]} 11. Nc3 {[%clk 0:02:35]}  Qb4 {[%clk 0:02:27]} 12. Be3 {[%clk 0:01:52]}  Nxc3 {[%clk 0:01:48]} 13. bxc3 {[%clk 0:01:53]}  Qxc3+ {[%clk 0:01:49]} 14. Kf1 {[%clk 0:01:50]}  Ba3 {[%clk 0:01:47]} 15. Rb1 {[%clk 0:01:20]}  Nxd4 {[%clk 0:01:43]} 16. Kg2 {[%clk 0:00:48]}  Nf5 {[%clk 0:00:58]} 17. Rb3 {[%clk 0:00:43]}  Qc6 {[%clk 0:00:48]} 18. Qb1 {[%clk 0:00:07]}  Qg6+ {[%clk 0:00:25]} 19. Kf1 {[%clk 0:00:07]}  Nxe3+ {[%clk 0:00:23]} 20. fxe3 {[%clk 0:00:07]}  Qxb1+ {[%clk 0:00:23]} 21. Rxb1 {[%clk 0:00:08]}  Bc5 {[%clk 0:00:23]} 22. Rb3 {[%clk 0:00:07]}  Rd2 {[%clk 0:00:21]} 23. Kf2 {[%clk 0:00:06]}  Rhd8 {[%clk 0:00:20]} 24. Rc1 {[%clk 0:00:06]}  b6 {[%clk 0:00:20]} 25. a4 {[%clk 0:00:06]}  a5 {[%clk 0:00:19]} 26. Rb5 {[%clk 0:00:05]}  Kc7 {[%clk 0:00:19]} 27. Rcxc5+ {[%clk 0:00:03]}  bxc5 {[%clk 0:00:19]} 28. Rxc5+ {[%clk 0:00:04]}  Kd6 {[%clk 0:00:19]} 29. Rxa5 {[%clk 0:00:04]}  Rb8 {[%clk 0:00:19]} 30. Ra6+ {[%clk 0:00:04]}  Ke7 {[%clk 0:00:18]} 31. Ra7+ {[%clk 0:00:04]}  Kf6 {[%clk 0:00:18]} 32. Ra6+ {[%clk 0:00:04]}  Ke7 {[%clk 0:00:18]} 33. Ra7+ {[%clk 0:00:05]}  Kf8 {[%clk 0:00:19]} 34. Ke1 {[%clk 0:00:04]}  Rc2 {[%clk 0:00:19]} 35. Bb5 {[%clk 0:00:04]}  Rbc8 {[%clk 0:00:18]} 36. Rd7 {[%clk 0:00:04]}  Rb2 {[%clk 0:00:18]} 37. Rd2 {[%clk 0:00:04]}  Rc1+ {[%clk 0:00:16]} 38. Ke2 {[%clk 0:00:04]}  Rxd2+ {[%clk 0:00:16]} 39. Kxd2 {[%clk 0:00:05]}  Rh1 {[%clk 0:00:17]} 40. a5 {[%clk 0:00:05]}  Rxh2+ {[%clk 0:00:17]} 41. Be2 {[%clk 0:00:05]}  Rh5 {[%clk 0:00:16]} 42. a6 {[%clk 0:00:05]}  Ra5 {[%clk 0:00:17]} 43. Kc3 {[%clk 0:00:06]}  Ke7 {[%clk 0:00:17]} 44. Kb4 {[%clk 0:00:06]}  Ra1 {[%clk 0:00:18]} 45. Bb5 {[%clk 0:00:07]}  Kd8 {[%clk 0:00:16]} 46. Ba4 {[%clk 0:00:06]}  Kc7 {[%clk 0:00:17]} 47. Bb5 {[%clk 0:00:05]}  Kb6 {[%clk 0:00:17]} 48. Bc4 {[%clk 0:00:05]}  h5 {[%clk 0:00:15]} 49. f4 {[%clk 0:00:04]}  h4 {[%clk 0:00:16]} 50. Bxf7 {[%clk 0:00:03]}  h3 {[%clk 0:00:15]} 51. Bd5 {[%clk 0:00:03]}  h2 {[%clk 0:00:16]} 52. a7 {[%clk 0:00:03]}  Kxa7 {[%clk 0:00:15]} 53. Kc5 {[%clk 0:00:04]}  h1=Q {[%clk 0:00:15]} 54. Bxh1 {[%clk 0:00:04]}  Rxh1 {[%clk 0:00:16]} 55. Kd5 {[%clk 0:00:03]}  Kb7 {[%clk 0:00:16]} 56. Ke6 {[%clk 0:00:03]}  Kc7 {[%clk 0:00:17]} 57. Kf7 {[%clk 0:00:03]}  Re1 {[%clk 0:00:16]} 58. Kxg7 {[%clk 0:00:03]}  Rxe3 {[%clk 0:00:16]} 59. f5 {[%clk 0:00:04]}  Kd7 {[%clk 0:00:16]} 60. f6 {[%clk 0:00:05]}  Rg3+ {[%clk 0:00:16]} 61. Kh7 {[%clk 0:00:02]}  Ke6 {[%clk 0:00:16]} 62. f7 {[%clk 0:00:02]}  Kxf7 {[%clk 0:00:16]} 63. Kh6 {[%clk 0:00:01]}  Kf6 {[%clk 0:00:16]} 64. Kh7 {[%clk 0:00:00]}  Rg6 {[%clk 0:00:15]} 0-1


[Site "https://www.chess.com"]

[Event "Titled Tuesday Blitz May 16 Early 2023"]
[White "Bryakin, Mikhail"]
[Black "Horak, Martin"]
[WhiteFideId "4165314"]
[BlackFideId "367095"]
[WhiteElo "2467"]
[BlackElo "2091"]
[Result "1-0"]
[Round "02"]
[TimeControl "180+2"]
[Date "2023.05.16"]
[WhiteClock "0:00:40"]
[BlackClock "0:00:00"]

1. e4 {[%clk 0:03:00]}  c5 {[%clk 0:03:00]} 2. Nf3 {[%clk 0:02:58]}  a6 {[%clk 0:03:00]} 3. c3 {[%clk 0:02:55]}  d5 {[%clk 0:03:00]} 4. exd5 {[%clk 0:02:47]}  Qxd5 {[%clk 0:03:01]} 5. Qb3 {[%clk 0:02:46]}  Qxb3 {[%clk 0:02:55]} 6. axb3 {[%clk 0:02:46]}  Nf6 {[%clk 0:02:55]} 7. Na3 {[%clk 0:02:44]}  Nbd7 {[%clk 0:02:23]} 8. d4 {[%clk 0:02:39]}  cxd4 {[%clk 0:02:13]} 9. Nxd4 {[%clk 0:02:38]}  e5 {[%clk 0:02:10]} 10. Nf3 {[%clk 0:02:26]}  Bc5 {[%clk 0:01:48]} 11. b4 {[%clk 0:02:22]}  Bb6 {[%clk 0:01:42]} 12. Nc4 {[%clk 0:02:23]}  Bc7 {[%clk 0:01:42]} 13. Be2 {[%clk 0:02:19]}  O-O {[%clk 0:01:41]} 14. Bg5 {[%clk 0:02:18]}  Re8 {[%clk 0:01:23]} 15. O-O {[%clk 0:02:05]}  h6 {[%clk 0:01:13]} 16. Be3 {[%clk 0:01:55]}  Nd5 {[%clk 0:01:10]} 17. Rfd1 {[%clk 0:01:52]}  Nxe3 {[%clk 0:01:08]} 18. Nxe3 {[%clk 0:01:53]}  Nf6 {[%clk 0:01:06]} 19. Nd2 {[%clk 0:01:47]}  Be6 {[%clk 0:00:59]} 20. Bc4 {[%clk 0:01:44]}  Rad8 {[%clk 0:00:49]} 21. Bxe6 {[%clk 0:01:44]}  Rxe6 {[%clk 0:00:50]} 22. Nb3 {[%clk 0:01:45]}  Rxd1+ {[%clk 0:00:37]} 23. Rxd1 {[%clk 0:01:44]}  Bb6 {[%clk 0:00:38]} 24. h3 {[%clk 0:01:43]}  Re7 {[%clk 0:00:32]} 25. Nc5 {[%clk 0:01:39]}  Bxc5 {[%clk 0:00:29]} 26. bxc5 {[%clk 0:01:40]}  Rd7 {[%clk 0:00:27]} 27. Rxd7 {[%clk 0:01:32]}  Nxd7 {[%clk 0:00:27]} 28. b4 {[%clk 0:01:32]}  Nf6 {[%clk 0:00:13]} 29. f3 {[%clk 0:01:31]}  Kf8 {[%clk 0:00:13]} 30. g4 {[%clk 0:01:30]}  Ke7 {[%clk 0:00:13]} 31. Nf5+ {[%clk 0:01:30]}  Kf8 {[%clk 0:00:12]} 32. Nd6 {[%clk 0:01:26]}  Nd5 {[%clk 0:00:12]} 33. Nxb7 {[%clk 0:01:27]}  Nxc3 {[%clk 0:00:12]} 34. c6 {[%clk 0:01:18]}  Ke7 {[%clk 0:00:10]} 35. Kf2 {[%clk 0:01:03]}  Nd5 {[%clk 0:00:09]} 36. Nc5 {[%clk 0:01:04]}  Kd6 {[%clk 0:00:09]} 37. Nxa6 {[%clk 0:01:03]}  Kxc6 {[%clk 0:00:09]} 38. h4 {[%clk 0:00:55]}  Kb6 {[%clk 0:00:09]} 39. Nc5 {[%clk 0:00:55]}  Nxb4 {[%clk 0:00:08]} 40. Nd7+ {[%clk 0:00:55]}  Kc7 {[%clk 0:00:06]} 41. Nxe5 {[%clk 0:00:56]}  f6 {[%clk 0:00:07]} 42. Ng6 {[%clk 0:00:55]}  Kd6 {[%clk 0:00:07]} 43. Ke3 {[%clk 0:00:56]}  Nd5+ {[%clk 0:00:06]} 44. Ke4 {[%clk 0:00:55]}  Ne7 {[%clk 0:00:07]} 45. Nf8 {[%clk 0:00:39]}  g6 {[%clk 0:00:03]} 46. h5 {[%clk 0:00:39]}  gxh5 {[%clk 0:00:00]} 47. gxh5 {[%clk 0:00:40]} 1-0


[Site "https://www.chess.com"]

[Event "Titled Tuesday Blitz May 16 Early 2023"]
[White "Hossain, Enamul"]
[Black "Wagner, Dennis"]
[WhiteFideId "10200649"]
[BlackFideId "24650684"]
[WhiteElo "2433"]
[BlackElo "2478"]
[Result "0-1"]
[Round "02"]
[TimeControl "180+2"]
[Date "2023.05.16"]
[WhiteClock "0:00:00"]
[BlackClock "0:00:03"]

1. e4 {[%clk 0:03:00]}  e5 {[%clk 0:03:00]} 2. Nf3 {[%clk 0:02:57]}  Nc6 {[%clk 0:03:00]} 3. Bc4 {[%clk 0:02:58]}  Bc5 {[%clk 0:02:59]} 4. O-O {[%clk 0:02:57]}  Nf6 {[%clk 0:02:59]} 5. d3 {[%clk 0:02:57]}  d6 {[%clk 0:02:58]} 6. c3 {[%clk 0:02:57]}  a6 {[%clk 0:02:55]} 7. a4 {[%clk 0:02:56]}  Ba7 {[%clk 0:02:54]} 8. Re1 {[%clk 0:02:53]}  h6 {[%clk 0:02:51]} 9. Nbd2 {[%clk 0:02:42]}  O-O {[%clk 0:02:50]} 10. h3 {[%clk 0:02:41]}  Re8 {[%clk 0:02:46]} 11. b4 {[%clk 0:02:29]}  Be6 {[%clk 0:02:46]} 12. Bb2 {[%clk 0:02:26]}  Qd7 {[%clk 0:02:32]} 13. b5 {[%clk 0:02:21]}  axb5 {[%clk 0:02:25]} 14. axb5 {[%clk 0:02:21]}  Ne7 {[%clk 0:02:22]} 15. Bxe6 {[%clk 0:02:17]}  Qxe6 {[%clk 0:02:17]} 16. c4 {[%clk 0:02:04]}  Ng6 {[%clk 0:02:15]} 17. d4 {[%clk 0:02:00]}  Nd7 {[%clk 0:01:50]} 18. Qc2 {[%clk 0:01:39]}  Nf4 {[%clk 0:01:47]} 19. Kh2 {[%clk 0:01:38]}  exd4 {[%clk 0:01:08]} 20. Bxd4 {[%clk 0:01:19]}  Bxd4 {[%clk 0:01:04]} 21. Nxd4 {[%clk 0:01:19]}  Qg6 {[%clk 0:00:49]} 22. g3 {[%clk 0:01:11]}  Rxa1 {[%clk 0:00:49]} 23. Rxa1 {[%clk 0:01:11]}  Qf6 {[%clk 0:00:47]} 24. N2f3 {[%clk 0:01:02]}  Ne6 {[%clk 0:00:45]} 25. Rd1 {[%clk 0:00:56]}  Nxd4 {[%clk 0:00:42]} 26. Nxd4 {[%clk 0:00:56]}  Nc5 {[%clk 0:00:42]} 27. f3 {[%clk 0:00:51]}  Ra8 {[%clk 0:00:40]} 28. Kg2 {[%clk 0:00:47]}  Ra3 {[%clk 0:00:37]} 29. Qe2 {[%clk 0:00:42]}  g6 {[%clk 0:00:29]} 30. Rd2 {[%clk 0:00:35]}  h5 {[%clk 0:00:28]} 31. h4 {[%clk 0:00:34]}  Ra1 {[%clk 0:00:21]} 32. Nc2 {[%clk 0:00:33]}  Rb1 {[%clk 0:00:13]} 33. Ne3 {[%clk 0:00:32]}  Nb3 {[%clk 0:00:10]} 34. Nd5 {[%clk 0:00:26]}  Qa1 {[%clk 0:00:09]} 35. Ra2 {[%clk 0:00:24]}  Rg1+ {[%clk 0:00:08]} 36. Kf2 {[%clk 0:00:21]}  Qd4+ {[%clk 0:00:02]} 37. Ne3 {[%clk 0:00:18]}  Rh1 {[%clk 0:00:02]} 38. Kg2 {[%clk 0:00:16]}  Nc1 {[%clk 0:00:03]} 39. Qd2 {[%clk 0:00:12]}  Qxd2+ {[%clk 0:00:02]} 40. Rxd2 {[%clk 0:00:12]}  Re1 {[%clk 0:00:02]} 41. Kf2 {[%clk 0:00:11]}  Rh1 {[%clk 0:00:03]} 42. Kg2 {[%clk 0:00:11]}  Re1 {[%clk 0:00:02]} 43. Nd5 {[%clk 0:00:11]}  c6 {[%clk 0:00:01]} 44. bxc6 {[%clk 0:00:08]}  bxc6 {[%clk 0:00:01]} 45. Ne7+ {[%clk 0:00:06]}  Kg7 {[%clk 0:00:02]} 46. Nxc6 {[%clk 0:00:07]}  Nb3 {[%clk 0:00:02]} 47. Rxd6 {[%clk 0:00:06]}  Re2+ {[%clk 0:00:02]} 48. Kf1 {[%clk 0:00:00]}  Rc2 {[%clk 0:00:03]} 0-1


[Site "https://www.chess.com"]